[Event "Titled Tuesday Blitz January 17 Late 2023"]
[White "Mahdavi, Reza"]
[Black "Chor, Kevin"]
[WhiteFideId "12595926"]
[BlackFideId "2090740"]
[WhiteElo "2339"]
[BlackElo "1944"]
[Result "1-0"]
[Round "05"]
[TimeControl "180+2"]
[Date "2023.01.17"]
[WhiteClock "0:00:11"]
[BlackClock "0:00:04"]

1. e4 {[%clk 0:03:00]}  c5 {[%clk 0:03:00]} 2. Nf3 {[%clk 0:02:58]}  g6 {[%clk 0:03:00]} 3. c3 {[%clk 0:02:54]}  Bg7 {[%clk 0:03:00]} 4. d4 {[%clk 0:02:47]}  cxd4 {[%clk 0:03:01]} 5. cxd4 {[%clk 0:02:48]}  d5 {[%clk 0:03:00]} 6. e5 {[%clk 0:02:21]}  Bg4 {[%clk 0:02:59]} 7. Bb5+ {[%clk 0:02:15]}  Nc6 {[%clk 0:02:57]} 8. Bxc6+ {[%clk 0:02:15]}  bxc6 {[%clk 0:02:58]} 9. Nbd2 {[%clk 0:02:16]}  Nh6 {[%clk 0:02:41]} 10. O-O {[%clk 0:02:14]}  O-O {[%clk 0:02:40]} 11. h3 {[%clk 0:01:59]}  Bd7 {[%clk 0:02:28]} 12. Nb3 {[%clk 0:01:56]}  f6 {[%clk 0:02:20]} 13. exf6 {[%clk 0:01:50]}  exf6 {[%clk 0:02:21]} 14. Nc5 {[%clk 0:01:50]}  Nf5 {[%clk 0:02:20]} 15. Bf4 {[%clk 0:01:50]}  Re8 {[%clk 0:02:12]} 16. Qd2 {[%clk 0:01:47]}  g5 {[%clk 0:02:07]} 17. Bh2 {[%clk 0:01:47]}  h5 {[%clk 0:01:57]} 18. Qd3 {[%clk 0:01:34]}  g4 {[%clk 0:01:52]} 19. hxg4 {[%clk 0:01:34]}  hxg4 {[%clk 0:01:53]} 20. Nd2 {[%clk 0:01:35]}  Qe7 {[%clk 0:01:37]} 21. Rfe1 {[%clk 0:01:34]}  Qf7 {[%clk 0:01:32]} 22. Nf1 {[%clk 0:01:29]}  Nh4 {[%clk 0:01:15]} 23. Bg3 {[%clk 0:01:20]}  Nf5 {[%clk 0:01:09]} 24. Bf4 {[%clk 0:01:11]}  Rxe1 {[%clk 0:01:07]} 25. Rxe1 {[%clk 0:01:11]}  Re8 {[%clk 0:01:06]} 26. Rxe8+ {[%clk 0:01:12]}  Qxe8 {[%clk 0:01:06]} 27. b4 {[%clk 0:01:02]}  Bc8 {[%clk 0:01:03]} 28. Be3 {[%clk 0:00:59]}  Nxe3 {[%clk 0:00:53]} 29. Nxe3 {[%clk 0:01:00]}  f5 {[%clk 0:00:53]} 30. Kf1 {[%clk 0:00:41]}  f4 {[%clk 0:00:39]} 31. Nf5 {[%clk 0:00:40]}  Bf6 {[%clk 0:00:23]} 32. Nd6 {[%clk 0:00:38]}  Qh5 {[%clk 0:00:13]} 33. Nxc8 {[%clk 0:00:38]}  f3 {[%clk 0:00:13]} 34. Kg1 {[%clk 0:00:30]}  g3 {[%clk 0:00:05]} 35. fxg3 {[%clk 0:00:21]}  Qg4 {[%clk 0:00:05]} 36. Nd6 {[%clk 0:00:15]}  Bxd4+ {[%clk 0:00:03]} 37. Kf1 {[%clk 0:00:15]}  Qxg3 {[%clk 0:00:02]} 38. Qxf3 {[%clk 0:00:14]}  Qxd6 {[%clk 0:00:02]} 39. Qg4+ {[%clk 0:00:12]}  Bg7 {[%clk 0:00:02]} 40. Ne6 {[%clk 0:00:10]}  Qe5 {[%clk 0:00:02]} 41. Qxg7+ {[%clk 0:00:10]}  Qxg7 {[%clk 0:00:03]} 42. Nxg7 {[%clk 0:00:11]}  Kxg7 {[%clk 0:00:04]} 43. a4 {[%clk 0:00:07]}  Kf6 {[%clk 0:00:04]} 44. b5 {[%clk 0:00:08]}  cxb5 {[%clk 0:00:04]} 45. axb5 {[%clk 0:00:09]}  Ke5 {[%clk 0:00:04]} 46. Ke2 {[%clk 0:00:09]}  d4 {[%clk 0:00:03]} 47. Kd3 {[%clk 0:00:09]}  Kd5 {[%clk 0:00:03]} 48. g4 {[%clk 0:00:10]}  Kc5 {[%clk 0:00:04]} 49. g5 {[%clk 0:00:11]}  Kd5 {[%clk 0:00:04]} 50. g6 {[%clk 0:00:11]} 1-0


[Site "https://www.chess.com"]

[Event "Titled Tuesday Blitz January 17 Late 2023"]
[White "Ismagilov, Damir"]
[Black "Makridis, Dimitrios"]
[WhiteFideId "34199982"]
[BlackFideId "25864475"]
[WhiteElo "2156"]
[BlackElo "2356"]
[Result "1/2-1/2"]
[Round "05"]
[TimeControl "180+2"]
[Date "2023.01.17"]
[WhiteClock "0:00:07"]
[BlackClock "0:00:08"]

1. e4 {[%clk 0:03:00]}  c5 {[%clk 0:02:57]} 2. Nf3 {[%clk 0:02:59]}  d6 {[%clk 0:02:45]} 3. d4 {[%clk 0:02:59]}  cxd4 {[%clk 0:02:46]} 4. Nxd4 {[%clk 0:02:59]}  Nc6 {[%clk 0:02:46]} 5. Nc3 {[%clk 0:02:46]}  Nf6 {[%clk 0:02:44]} 6. f3 {[%clk 0:02:45]}  e6 {[%clk 0:02:35]} 7. Be3 {[%clk 0:02:44]}  Be7 {[%clk 0:02:30]} 8. Qd2 {[%clk 0:02:44]}  a6 {[%clk 0:02:29]} 9. O-O-O {[%clk 0:02:39]}  Bd7 {[%clk 0:02:27]} 10. g4 {[%clk 0:02:35]}  O-O {[%clk 0:02:17]} 11. h4 {[%clk 0:02:26]}  b5 {[%clk 0:02:15]} 12. g5 {[%clk 0:02:10]}  Ne8 {[%clk 0:02:09]} 13. f4 {[%clk 0:01:56]}  b4 {[%clk 0:02:00]} 14. Nce2 {[%clk 0:01:54]}  a5 {[%clk 0:01:59]} 15. Bg2 {[%clk 0:01:36]}  a4 {[%clk 0:01:54]} 16. Nxc6 {[%clk 0:01:31]}  Bxc6 {[%clk 0:01:55]} 17. Qxb4 {[%clk 0:01:30]}  Nc7 {[%clk 0:01:47]} 18. Nd4 {[%clk 0:01:28]}  Bd7 {[%clk 0:01:46]} 19. f5 {[%clk 0:01:23]}  d5 {[%clk 0:01:41]} 20. Qd2 {[%clk 0:01:12]}  a3 {[%clk 0:01:30]} 21. b3 {[%clk 0:01:08]}  e5 {[%clk 0:01:28]} 22. Nf3 {[%clk 0:01:02]}  d4 {[%clk 0:01:11]} 23. Nxe5 {[%clk 0:01:02]}  dxe3 {[%clk 0:01:05]} 24. Qxd7 {[%clk 0:01:02]}  e2 {[%clk 0:00:54]} 25. Qxd8 {[%clk 0:00:48]}  Raxd8 {[%clk 0:00:48]} 26. Rxd8 {[%clk 0:00:48]}  Rxd8 {[%clk 0:00:49]} 27. Nc6 {[%clk 0:00:47]}  Rd7 {[%clk 0:00:39]} 28. Nxe7+ {[%clk 0:00:43]}  Rxe7 {[%clk 0:00:40]} 29. Re1 {[%clk 0:00:42]}  Nb5 {[%clk 0:00:41]} 30. Rxe2 {[%clk 0:00:23]}  Nc3 {[%clk 0:00:39]} 31. Rd2 {[%clk 0:00:23]}  h5 {[%clk 0:00:15]} 32. g6 {[%clk 0:00:22]}  fxg6 {[%clk 0:00:15]} 33. fxg6 {[%clk 0:00:23]}  Re8 {[%clk 0:00:15]} 34. e5 {[%clk 0:00:22]}  Kf8 {[%clk 0:00:16]} 35. Rf2+ {[%clk 0:00:21]}  Ke7 {[%clk 0:00:15]} 36. Rf7+ {[%clk 0:00:21]}  Ke6 {[%clk 0:00:14]} 37. Rxg7 {[%clk 0:00:22]}  Nxa2+ {[%clk 0:00:14]} 38. Kd2 {[%clk 0:00:22]}  Rd8+ {[%clk 0:00:13]} 39. Ke2 {[%clk 0:00:22]}  Nc3+ {[%clk 0:00:13]} 40. Kf2 {[%clk 0:00:17]}  a2 {[%clk 0:00:13]} 41. Ra7 {[%clk 0:00:17]}  Kxe5 {[%clk 0:00:12]} 42. g7 {[%clk 0:00:16]}  Rg8 {[%clk 0:00:12]} 43. Ke3 {[%clk 0:00:16]}  Rxg7 {[%clk 0:00:12]} 44. Ra5+ {[%clk 0:00:07]}  Kd6 {[%clk 0:00:11]} 45. Kd3 {[%clk 0:00:07]}  Rg3+ {[%clk 0:00:09]} 46. Kc4 {[%clk 0:00:07]}  Kc7 {[%clk 0:00:08]} 47. Bd5 {[%clk 0:00:05]}  Kb6 {[%clk 0:00:08]} 48. Ra8 {[%clk 0:00:05]}  Nb5 {[%clk 0:00:06]} 49. Rxa2 {[%clk 0:00:04]}  Rg4+ {[%clk 0:00:07]} 50. Kd3 {[%clk 0:00:04]}  Rd4+ {[%clk 0:00:07]} 51. Ke3 {[%clk 0:00:04]}  Rxd5 {[%clk 0:00:08]} 52. c3 {[%clk 0:00:04]}  Nxc3 {[%clk 0:00:08]} 53. Rg2 {[%clk 0:00:04]}  Kc5 {[%clk 0:00:07]} 54. Rg5 {[%clk 0:00:04]}  Nb5 {[%clk 0:00:05]} 55. Kf4 {[%clk 0:00:03]}  Kd6 {[%clk 0:00:02]} 56. Rxd5+ {[%clk 0:00:04]}  Kxd5 {[%clk 0:00:03]} 57. Kg5 {[%clk 0:00:04]}  Nd4 {[%clk 0:00:04]} 58. Kxh5 {[%clk 0:00:05]}  Nf3 {[%clk 0:00:05]} 59. Kg4 {[%clk 0:00:05]}  Nxh4 {[%clk 0:00:06]} 60. Kxh4 {[%clk 0:00:05]}  Kc5 {[%clk 0:00:06]} 61. Kg5 {[%clk 0:00:06]}  Kb4 {[%clk 0:00:07]} 62. Kf4 {[%clk 0:00:07]}  Kxb3 {[%clk 0:00:08]} 1/2-1/2


[Site "https://www.chess.com"]

[Event "Titled Tuesday Blitz January 17 Late 2023"]
[White "Borges Feria, Yasel"]
[Black "Hirneise, Jens"]
[WhiteFideId "3504921"]
[BlackFideId "24614734"]
[WhiteElo "2439"]
[BlackElo "2277"]
[Result "1-0"]
[Round "05"]
[TimeControl "180+2"]
[Date "2023.01.17"]
[WhiteClock "0:00:24"]
[BlackClock "0:00:11"]

1. d4 {[%clk 0:02:56]}  Nf6 {[%clk 0:02:59]} 2. c4 {[%clk 0:02:54]}  e5 {[%clk 0:02:58]} 3. dxe5 {[%clk 0:02:51]}  Ne4 {[%clk 0:02:56]} 4. a3 {[%clk 0:02:43]}  Bc5 {[%clk 0:02:36]} 5. e3 {[%clk 0:02:35]}  c6 {[%clk 0:02:00]} 6. Qg4 {[%clk 0:02:25]}  Ng5 {[%clk 0:01:56]} 7. h4 {[%clk 0:02:17]}  Ne6 {[%clk 0:01:56]} 8. Nc3 {[%clk 0:01:53]}  d5 {[%clk 0:01:56]} 9. Qd1 {[%clk 0:01:43]}  d4 {[%clk 0:01:54]} 10. Ne4 {[%clk 0:01:38]}  dxe3 {[%clk 0:01:41]} 11. Bxe3 {[%clk 0:01:35]}  Bxe3 {[%clk 0:01:22]} 12. Nd6+ {[%clk 0:01:27]}  Kf8 {[%clk 0:01:15]} 13. fxe3 {[%clk 0:01:23]}  Nd7 {[%clk 0:01:13]} 14. Nf3 {[%clk 0:01:17]}  Nxe5 {[%clk 0:01:07]} 15. Qd2 {[%clk 0:01:07]}  Nxf3+ {[%clk 0:01:04]} 16. gxf3 {[%clk 0:01:08]}  Qe7 {[%clk 0:00:55]} 17. O-O-O {[%clk 0:01:04]}  h5 {[%clk 0:00:54]} 18. Kb1 {[%clk 0:00:55]}  b5 {[%clk 0:00:53]} 19. cxb5 {[%clk 0:00:52]}  cxb5 {[%clk 0:00:53]} 20. Nf5 {[%clk 0:00:49]}  Qc7 {[%clk 0:00:33]} 21. Rg1 {[%clk 0:00:37]}  Bb7 {[%clk 0:00:25]} 22. Rc1 {[%clk 0:00:37]}  Qe5 {[%clk 0:00:12]} 23. Qb4+ {[%clk 0:00:34]}  Kg8 {[%clk 0:00:13]} 24. Ne7+ {[%clk 0:00:30]}  Kh7 {[%clk 0:00:13]} 25. Bd3+ {[%clk 0:00:29]}  g6 {[%clk 0:00:12]} 26. Nxg6 {[%clk 0:00:27]}  fxg6 {[%clk 0:00:11]} 27. Qe7+ {[%clk 0:00:24]} 1-0


[Site "https://www.chess.com"]

[Event "Titled Tuesday Blitz January 17 Late 2023"]
[White "Fernandez Guillen, Ernesto J."]
[Black "Sielecki, Christof"]
[WhiteFideId "3512428"]
[BlackFideId "4620437"]
[WhiteElo "2477"]
[BlackElo "2419"]
[Result "0-1"]
[Round "05"]
[TimeControl "180+2"]
[Date "2023.01.17"]
[WhiteClock "0:00:03"]
[BlackClock "0:00:38"]

1. e4 {[%clk 0:03:00]}  c5 {[%clk 0:02:59]} 2. Nf3 {[%clk 0:03:00]}  a6 {[%clk 0:03:00]} 3. d4 {[%clk 0:03:01]}  cxd4 {[%clk 0:03:00]} 4. Nxd4 {[%clk 0:03:02]}  Nf6 {[%clk 0:03:00]} 5. Nc3 {[%clk 0:03:01]}  e5 {[%clk 0:03:00]} 6. Nb3 {[%clk 0:03:01]}  Bb4 {[%clk 0:02:59]} 7. Bg5 {[%clk 0:03:02]}  h6 {[%clk 0:02:59]} 8. Bxf6 {[%clk 0:03:02]}  Bxc3+ {[%clk 0:02:58]} 9. bxc3 {[%clk 0:03:03]}  Qxf6 {[%clk 0:02:58]} 10. Bc4 {[%clk 0:03:03]}  O-O {[%clk 0:02:52]} 11. Qd2 {[%clk 0:03:03]}  d6 {[%clk 0:02:48]} 12. O-O-O {[%clk 0:02:56]}  Nc6 {[%clk 0:02:39]} 13. f3 {[%clk 0:02:41]}  Rd8 {[%clk 0:02:26]} 14. Kb2 {[%clk 0:02:32]}  Be6 {[%clk 0:02:23]} 15. Bd5 {[%clk 0:02:32]}  Rac8 {[%clk 0:02:17]} 16. a4 {[%clk 0:02:29]}  Qe7 {[%clk 0:02:04]} 17. c4 {[%clk 0:02:26]}  Bxd5 {[%clk 0:01:56]} 18. cxd5 {[%clk 0:02:25]}  Nb8 {[%clk 0:01:54]} 19. Qb4 {[%clk 0:01:46]}  Rc7 {[%clk 0:01:46]} 20. c4 {[%clk 0:01:41]}  Nd7 {[%clk 0:01:45]} 21. Rc1 {[%clk 0:01:35]}  Rdc8 {[%clk 0:01:45]} 22. Rc2 {[%clk 0:01:35]}  Nc5 {[%clk 0:01:44]} 23. Nxc5 {[%clk 0:01:35]}  Rxc5 {[%clk 0:01:45]} 24. Rhc1 {[%clk 0:01:34]}  Qc7 {[%clk 0:01:44]} 25. Rc3 {[%clk 0:01:30]}  g6 {[%clk 0:01:43]} 26. Rb3 {[%clk 0:01:23]}  b5 {[%clk 0:01:38]} 27. axb5 {[%clk 0:00:39]}  axb5 {[%clk 0:01:37]} 28. Rbc3 {[%clk 0:00:35]}  bxc4 {[%clk 0:01:37]} 29. Kc2 {[%clk 0:00:34]}  Rb8 {[%clk 0:01:32]} 30. Qa4 {[%clk 0:00:34]}  Qb6 {[%clk 0:01:28]} 31. Rxc4 {[%clk 0:00:20]}  Rxc4+ {[%clk 0:01:23]} 32. Qxc4 {[%clk 0:00:21]}  Qf2+ {[%clk 0:01:18]} 33. Kd1 {[%clk 0:00:21]}  Qxg2 {[%clk 0:01:12]} 34. Qe2 {[%clk 0:00:21]}  Qg1+ {[%clk 0:01:07]} 35. Qe1 {[%clk 0:00:08]}  Qxh2 {[%clk 0:01:03]} 36. Qe2 {[%clk 0:00:07]}  Qg1+ {[%clk 0:01:02]} 37. Qe1 {[%clk 0:00:07]}  Qd4+ {[%clk 0:01:01]} 38. Qd2 {[%clk 0:00:07]}  Qg1+ {[%clk 0:00:52]} 39. Qe1 {[%clk 0:00:06]}  Qg2 {[%clk 0:00:49]} 40. Qe2 {[%clk 0:00:05]}  Qh1+ {[%clk 0:00:43]} 41. Kd2 {[%clk 0:00:03]}  Rb2+ {[%clk 0:00:42]} 42. Rc2 {[%clk 0:00:03]}  Qb1 {[%clk 0:00:38]} 43. Rxb2 {[%clk 0:00:01]}  Qxb2+ {[%clk 0:00:38]} 44. Ke1 {[%clk 0:00:02]}  Qxe2+ {[%clk 0:00:38]} 45. Kxe2 {[%clk 0:00:03]}  f5 {[%clk 0:00:38]} 0-1


[Site "https://www.chess.com"]

[Event "Titled Tuesday Blitz January 17 Late 2023"]
[White "Jovic, Stanoje"]
[Black "Djordjevic, Vuk"]
[WhiteFideId "905020"]
[BlackFideId "902098"]
[WhiteElo "2075"]
[BlackElo "2375"]
[Result "1/2-1/2"]
[Round "05"]
[TimeControl "180+2"]
[Date "2023.01.17"]
[WhiteClock "0:00:03"]
[BlackClock "0:00:06"]

1. c4 {[%clk 0:03:00]}  e5 {[%clk 0:02:59]} 2. g3 {[%clk 0:03:01]}  Nc6 {[%clk 0:03:00]} 3. Bg2 {[%clk 0:03:01]}  g6 {[%clk 0:03:01]} 4. Nc3 {[%clk 0:03:00]}  Bg7 {[%clk 0:03:01]} 5. Nf3 {[%clk 0:03:01]}  d6 {[%clk 0:03:02]} 6. O-O {[%clk 0:03:00]}  Be6 {[%clk 0:03:02]} 7. d3 {[%clk 0:03:00]}  h6 {[%clk 0:03:03]} 8. Rb1 {[%clk 0:03:00]}  Qd7 {[%clk 0:03:04]} 9. b4 {[%clk 0:02:59]}  Bh3 {[%clk 0:03:04]} 10. b5 {[%clk 0:02:59]}  Nd8 {[%clk 0:03:04]} 11. Nd5 {[%clk 0:02:59]}  Bxg2 {[%clk 0:03:04]} 12. Kxg2 {[%clk 0:02:59]}  c6 {[%clk 0:03:02]} 13. bxc6 {[%clk 0:02:57]}  bxc6 {[%clk 0:03:03]} 14. Nc3 {[%clk 0:02:57]}  f5 {[%clk 0:03:00]} 15. e4 {[%clk 0:02:56]}  Ne7 {[%clk 0:02:58]} 16. h3 {[%clk 0:02:43]}  O-O {[%clk 0:02:57]} 17. Nh2 {[%clk 0:02:36]}  Ne6 {[%clk 0:02:52]} 18. Qa4 {[%clk 0:02:31]}  f4 {[%clk 0:02:47]} 19. g4 {[%clk 0:02:27]}  f3+ {[%clk 0:01:49]} 20. Nxf3 {[%clk 0:02:24]}  h5 {[%clk 0:01:49]} 21. gxh5 {[%clk 0:02:17]}  Nf4+ {[%clk 0:01:42]} 22. Bxf4 {[%clk 0:02:15]}  Rxf4 {[%clk 0:01:43]} 23. Nd5 {[%clk 0:02:05]}  Nxd5 {[%clk 0:01:41]} 24. cxd5 {[%clk 0:02:03]}  Raf8 {[%clk 0:01:11]} 25. dxc6 {[%clk 0:01:56]}  Qf7 {[%clk 0:01:11]} 26. Rb7 {[%clk 0:01:23]}  Qf6 {[%clk 0:01:03]} 27. Rxg7+ {[%clk 0:01:09]}  Kxg7 {[%clk 0:00:54]} 28. Qxa7+ {[%clk 0:01:08]}  Rf7 {[%clk 0:00:43]} 29. h6+ {[%clk 0:01:07]}  Kxh6 {[%clk 0:00:41]} 30. Qe3 {[%clk 0:01:05]}  Kg7 {[%clk 0:00:37]} 31. Nh2 {[%clk 0:01:02]}  Qe6 {[%clk 0:00:26]} 32. Rc1 {[%clk 0:00:55]}  Qxa2 {[%clk 0:00:20]} 33. Ng4 {[%clk 0:00:53]}  Rc7 {[%clk 0:00:20]} 34. d4 {[%clk 0:00:50]}  Qe6 {[%clk 0:00:17]} 35. dxe5 {[%clk 0:00:49]}  dxe5 {[%clk 0:00:18]} 36. Qb6 {[%clk 0:00:45]}  Qd6 {[%clk 0:00:13]} 37. Rd1 {[%clk 0:00:35]}  Qxc6 {[%clk 0:00:12]} 38. Qxc6 {[%clk 0:00:34]}  Rxc6 {[%clk 0:00:13]} 39. Rd7+ {[%clk 0:00:33]}  Kf8 {[%clk 0:00:11]} 40. Nxe5 {[%clk 0:00:32]}  Re6 {[%clk 0:00:11]} 41. Rd5 {[%clk 0:00:27]}  Rxe4 {[%clk 0:00:11]} 42. Ng4 {[%clk 0:00:27]}  Rf4 {[%clk 0:00:09]} 43. Kg3 {[%clk 0:00:25]}  Ra4 {[%clk 0:00:09]} 44. Rd7 {[%clk 0:00:24]}  Ra3+ {[%clk 0:00:08]} 45. Kg2 {[%clk 0:00:24]}  Ra5 {[%clk 0:00:08]} 46. Rc7 {[%clk 0:00:24]}  Rf5 {[%clk 0:00:07]} 47. Rd7 {[%clk 0:00:23]}  Ra6 {[%clk 0:00:05]} 48. Rc7 {[%clk 0:00:23]}  Rf7 {[%clk 0:00:05]} 49. Rxf7+ {[%clk 0:00:22]}  Kxf7 {[%clk 0:00:06]} 50. Kg3 {[%clk 0:00:23]}  Ra4 {[%clk 0:00:06]} 51. Kg2 {[%clk 0:00:23]}  Ke6 {[%clk 0:00:06]} 52. Kg3 {[%clk 0:00:23]}  Kf5 {[%clk 0:00:07]} 53. Kg2 {[%clk 0:00:22]}  Kf4 {[%clk 0:00:07]} 54. Nf6 {[%clk 0:00:22]}  Ra2 {[%clk 0:00:07]} 55. Nd5+ {[%clk 0:00:21]}  Ke5 {[%clk 0:00:07]} 56. Ne3 {[%clk 0:00:21]}  Ke4 {[%clk 0:00:07]} 57. Ng4 {[%clk 0:00:20]}  Rb2 {[%clk 0:00:03]} 58. Nf6+ {[%clk 0:00:17]}  Ke5 {[%clk 0:00:03]} 59. Ng4+ {[%clk 0:00:17]}  Kf4 {[%clk 0:00:03]} 60. Ne3 {[%clk 0:00:16]}  Rb8 {[%clk 0:00:04]} 61. Nd5+ {[%clk 0:00:16]}  Ke4 {[%clk 0:00:04]} 62. Ne7 {[%clk 0:00:15]}  Re8 {[%clk 0:00:03]} 63. Nc6 {[%clk 0:00:14]}  Kd3 {[%clk 0:00:03]} 64. Kg3 {[%clk 0:00:12]}  Kc4 {[%clk 0:00:04]} 65. f4 {[%clk 0:00:12]}  Kc5 {[%clk 0:00:04]} 66. Ne5 {[%clk 0:00:12]}  g5 {[%clk 0:00:02]} 67. Kg4 {[%clk 0:00:09]}  gxf4 {[%clk 0:00:01]} 68. Kxf4 {[%clk 0:00:10]}  Kd5 {[%clk 0:00:02]} 69. Ng4 {[%clk 0:00:09]}  Rf8+ {[%clk 0:00:03]} 70. Kg5 {[%clk 0:00:09]}  Ke6 {[%clk 0:00:03]} 71. h4 {[%clk 0:00:09]}  Rg8+ {[%clk 0:00:02]} 72. Kf4 {[%clk 0:00:09]}  Rh8 {[%clk 0:00:03]} 73. Kg3 {[%clk 0:00:08]}  Kf5 {[%clk 0:00:04]} 74. Ne3+ {[%clk 0:00:08]}  Ke4 {[%clk 0:00:04]} 75. Ng4 {[%clk 0:00:08]}  Rg8 {[%clk 0:00:05]} 76. Kh3 {[%clk 0:00:08]}  Kf4 {[%clk 0:00:05]} 77. Nf6 {[%clk 0:00:07]}  Rg6 {[%clk 0:00:05]} 78. Nh5+ {[%clk 0:00:06]}  Kf3 {[%clk 0:00:05]} 79. Kh2 {[%clk 0:00:07]}  Kg4 {[%clk 0:00:05]} 80. Ng3 {[%clk 0:00:05]}  Kxh4 {[%clk 0:00:05]} 81. Nf5+ {[%clk 0:00:05]}  Kg4 {[%clk 0:00:05]} 82. Ne3+ {[%clk 0:00:05]}  Kf3 {[%clk 0:00:05]} 83. Nf5 {[%clk 0:00:04]}  Rg5 {[%clk 0:00:05]} 84. Nd4+ {[%clk 0:00:04]}  Kf2 {[%clk 0:00:05]} 85. Kh3 {[%clk 0:00:04]}  Ke3 {[%clk 0:00:04]} 86. Nc2+ {[%clk 0:00:03]}  Kd3 {[%clk 0:00:04]} 87. Nb4+ {[%clk 0:00:02]}  Kc3 {[%clk 0:00:03]} 88. Nc6 {[%clk 0:00:02]}  Kc4 {[%clk 0:00:03]} 89. Kh4 {[%clk 0:00:02]}  Rg7 {[%clk 0:00:04]} 90. Ne5+ {[%clk 0:00:01]}  Kd4 {[%clk 0:00:04]} 91. Nf3+ {[%clk 0:00:01]}  Ke4 {[%clk 0:00:05]} 92. Ng5+ {[%clk 0:00:02]}  Kf4 {[%clk 0:00:05]} 93. Ne6+ {[%clk 0:00:02]}  Kf5 {[%clk 0:00:06]} 94. Nxg7+ {[%clk 0:00:03]} 1/2-1/2


[Site "https://www.chess.com"]

[Event "Titled Tuesday Blitz January 17 Late 2023"]
[White "Timmermans, Mark"]
[Black "Haszon, David"]
[WhiteFideId "1026399"]
[BlackFideId "733610"]
[WhiteElo "2392"]
[BlackElo "2264"]
[Result "1-0"]
[Round "05"]
[TimeControl "180+2"]
[Date "2023.01.17"]
[WhiteClock "0:00:32"]
[BlackClock "0:00:21"]

1. e4 {[%clk 0:02:59]}  c5 {[%clk 0:02:59]} 2. Nf3 {[%clk 0:02:58]}  d6 {[%clk 0:03:00]} 3. d4 {[%clk 0:02:57]}  cxd4 {[%clk 0:03:01]} 4. Nxd4 {[%clk 0:02:57]}  Nf6 {[%clk 0:03:01]} 5. Nc3 {[%clk 0:02:56]}  a6 {[%clk 0:03:01]} 6. Rg1 {[%clk 0:02:45]}  e5 {[%clk 0:02:49]} 7. Nb3 {[%clk 0:02:40]}  h5 {[%clk 0:02:38]} 8. Bg5 {[%clk 0:02:36]}  Be6 {[%clk 0:02:34]} 9. Qd2 {[%clk 0:02:35]}  Be7 {[%clk 0:02:30]} 10. O-O-O {[%clk 0:02:35]}  a5 {[%clk 0:02:22]} 11. Bb5+ {[%clk 0:02:27]}  Kf8 {[%clk 0:02:22]} 12. Bxf6 {[%clk 0:02:23]}  gxf6 {[%clk 0:02:02]} 13. f4 {[%clk 0:02:22]}  Nc6 {[%clk 0:01:50]} 14. f5 {[%clk 0:02:20]}  Bxb3 {[%clk 0:01:50]} 15. axb3 {[%clk 0:02:13]}  Nd4 {[%clk 0:01:49]} 16. Qe3 {[%clk 0:02:06]}  Qb6 {[%clk 0:01:39]} 17. Kb1 {[%clk 0:02:06]}  Rc8 {[%clk 0:01:35]} 18. Bc4 {[%clk 0:02:03]}  Qc5 {[%clk 0:01:26]} 19. Na4 {[%clk 0:01:50]}  Qc6 {[%clk 0:01:11]} 20. c3 {[%clk 0:01:39]}  b5 {[%clk 0:01:00]} 21. Bd5 {[%clk 0:01:38]}  Qc7 {[%clk 0:00:54]} 22. cxd4 {[%clk 0:01:23]}  exd4 {[%clk 0:00:46]} 23. Qxd4 {[%clk 0:01:16]}  bxa4 {[%clk 0:00:46]} 24. Rc1 {[%clk 0:01:16]}  Qb8 {[%clk 0:00:42]} 25. Rxc8+ {[%clk 0:01:11]}  Qxc8 {[%clk 0:00:43]} 26. Rc1 {[%clk 0:01:09]}  Qa6 {[%clk 0:00:44]} 27. Bc4 {[%clk 0:01:03]}  Qb7 {[%clk 0:00:36]} 28. bxa4 {[%clk 0:00:55]}  Rg8 {[%clk 0:00:36]} 29. g3 {[%clk 0:00:54]}  h4 {[%clk 0:00:36]} 30. Bd5 {[%clk 0:00:51]}  Qb8 {[%clk 0:00:33]} 31. Qe3 {[%clk 0:00:41]}  Bd8 {[%clk 0:00:24]} 32. Qh6+ {[%clk 0:00:41]}  Ke7 {[%clk 0:00:23]} 33. Qh7 {[%clk 0:00:38]}  Rf8 {[%clk 0:00:23]} 34. Qxh4 {[%clk 0:00:38]}  Qb4 {[%clk 0:00:20]} 35. Rc4 {[%clk 0:00:35]}  Qe1+ {[%clk 0:00:20]} 36. Ka2 {[%clk 0:00:36]}  Bb6 {[%clk 0:00:20]} 37. Qf4 {[%clk 0:00:33]}  Bc5 {[%clk 0:00:20]} 38. Rxc5 {[%clk 0:00:32]}  dxc5 {[%clk 0:00:21]} 39. Qc7+ {[%clk 0:00:32]}  Ke8 {[%clk 0:00:21]} 40. Bc6# {[%clk 0:00:32]} 1-0


[Site "https://www.chess.com"]